{"text_format":"1","workbook":"xlsx","n_sheets":8,"sheets":["Instructions","Récapitulatif","Coûts salariaux","Coûts d'exploitation","Matériel TIC","Cofinancement","Aperçu des dépenses acceptées","Aperçu du matériel TIC"],"not_rendered":{"charts":0,"images":4,"macros":1,"external_links":0,"defined_names":0,"comments":0,"pivot_tables":0},"unopened":[],"bounds":{"document_bytes":16777216,"sheet_cells":100000,"rows_first":2000,"rows_last":500,"rows_between":2000,"halvings":0,"cell_chars":16384,"cell_head_chars":4096},"cells_cut":0,"cells_raw":0,"read":"whole","date_system":"1900"}

{"sheet":"Instructions","index":0,"n_rows":0,"n_cols":0,"rows_kept":0,"cut":false,"hidden":false,"merged":[[0,0,1048575,16383]]}

{"sheet":"Récapitulatif","index":1,"n_rows":31,"n_cols":8,"rows_kept":31,"cut":false,"hidden":false,"merged":[[4,0,5,0],[4,7,5,7],[2,1,2,7],[4,1,5,1],[3,2,4,2],[3,3,4,3]]}
["Récapitulatif"]
[]
["NOM DU PROJET:"]
[null,null,"min. de la subvention e-inclusion demandée","max. de la subvention e-inclusion demandée",null,"ANNÉE 1","ANNÉE 2"]
["Nombre d'habitants dans la/les commune(s) du/des CPAS :",null,null,null,"De:",45231,45597,"DURÉE TOTALE \nDU PROJET"]
[null,null,{"$f":"_xlfn.IFS(B5>150000,60000,B5>50000,60000,B5>15000,60000,B5>9999,0,B5<9999,\" \")","v":" "},{"$f":"_xlfn.IFS(B5>150000,400000,B5>50000,250000,B5>15000,120000,B5>9999,60000,B5<9999,\" \")","v":" "},"À:",45596,45961]
["COÛTS"]
["Coûts salariaux",null,null,null,null,{"$f":"SUM(Tabel5[Coût salarial total])","v":0},{"$f":"SUM(Tabel57[Coût salarial total])","v":0},{"$f":"SUM(F8:G8)","v":0}]
["Coûts d'exploitation hors TVA",null,null,null,null,{"$f":"SUM(Tabel2[Coût hors TVA])","v":0},{"$f":"SUM(Tabel24[Coût hors TVA])","v":0},{"$f":"SUM(F9:G9)","v":0}]
["TVA coûts d'exploitation",null,null,null,null,{"$f":"SUM(Tabel2[TVA])","v":0},{"$f":"SUM(Tabel24[TVA])","v":0},{"$f":"SUM(F10:G10)","v":0}]
["Coûts d'exploitation TVA incluse",null,null,null,null,{"$f":"SUM(F9+F10)","v":0},{"$f":"SUM(G9+G10)","v":0},0]
["Matériel TIC hors TVA",null,null,null,null,{"$f":"SUM(Tabel22[Coût hors TVA])","v":0},{"$f":"SUM(Tabel249[Coût hors TVA])","v":0},{"$f":"SUM(F12:G12)","v":0}]
["TVA Matériel TIC",null,null,null,null,{"$f":"SUM(Tabel22[TVA])","v":0},{"$f":"SUM(Tabel249[TVA])","v":0},{"$f":"SUM(F13:G13)","v":0}]
["Matériel TIC TVA incluse*",null,null,null,null,{"$f":"SUM(F12+F13)","v":0},0,{"$f":"SUM(H12+H13)","v":0}]
[]
["COÛT TOTAL",null,null,null,null,{"$f":"SUM(F8+F11+F14)","v":0},{"$f":"SUM(G8+G11+G14)","v":0},0]
[]
["COFINANCEMENT"]
["Fonds propres du porteur de projet et/ou éventuelle contribution des bénéficiaires",null,null,null,null,{"$f":"SUM(Tabel2121527[Montant])","v":0},{"$f":"SUM(Tabel212152729[Montant])","v":0},{"$f":"SUM(F19:G19)","v":0}]
["Contribution(s) du/des co-exécutant(s) et/ou d'autre(s) organisation(s)",null,null,null,null,{"$f":"SUM(Tabel2121528[Montant])","v":0},{"$f":"SUM(Tabel212152730[Montant])","v":0},{"$f":"SUM(F20:G20)","v":0}]
["Contributions publiques/subventions (demandées ou obtenues)",null,null,null,null,{"$f":"SUM(Tabel212152733[Montant])","v":0},{"$f":"SUM(Tabel212152735[Montant])","v":0},{"$f":"SUM(F21:G21)","v":0}]
[]
["TOTAL DU COFINANCEMENT*",null,null,null,null,{"$f":"SUM(F19:F21)","v":0},{"$f":"SUM(G19:G21)","v":0},{"$f":"SUM(H19:H21)","v":0}]
[]
["Montant de la subvention à demander dans le cadre d' \"e-inclusion for Belgium - CPAS 2023\" hors TVA",null,null,null,null,{"$f":"SUM(F27-F26)","v":0},{"$f":"SUM(G27-G26)","v":0},{"$f":"SUM(H27-H26)","v":0}]
["Montant de la TVA de la subvention à demander dans le cadre d' \"e-inclusion for Belgium - CPAS 2023\"",null,null,null,null,{"$f":"SUM(F10+F13)","v":0},{"$f":"SUM(G10+G13)","v":0},{"$f":"SUM(H10+H13)","v":0}]
[" Montant de la subvention à demander dans le cadre d' \"e-inclusion for Belgium - CPAS 2023\" TVA incluse",null,null,null,null,{"$f":"(F16-F23)","v":0},{"$f":"(G16-G23)","v":0},{"$f":"(H16-H23)","v":0}]
[]
["TOTAL DU COFINANCEMENT + SUBVENTION",null,null,null,null,{"$f":"SUM(F23+F27)","v":0},{"$f":"SUM(G23+G27)","v":0},{"$f":"SUM(H23+H27)","v":0}]
["* Si la cellule du \"Matériel TIC TVA incluse\" est colorée en rouge, cela signifie que la limite des 25 % maximum de matériel TIC est dépassée."]
["* Si la cellule du \"Total du cofinancement\" est colorée en rouge, cela signifie que le cofinancement d'au moins 20% n'est pas respecté."]

{"sheet":"Coûts salariaux","index":2,"n_rows":21,"n_cols":6,"rows_kept":21,"cut":false,"hidden":false,"merged":[[0,0,0,1],[8,0,8,5],[2,0,3,1],[5,0,5,5]]}
["Coûts salariaux"]
[]
["Documents justificatifs à présenter lors du rapportage en cours de projet (non-exhaustif) :",null,"• Fiches de salaire mensuel ou équivalents (attestations, extraits de la gestion électronique…)"]
[]
[]
["Remarque : il convient de lire la brochure d'information pour savoir quels coûts sont inclus dans le coût salarial brut."]
[]
["Si vous avez besoin de plus de lignes que celles prévues dans le(s) tableau(x), vous pouvez ajouter vous-même des lignes en cliquant dans le tableau concerné avec votre souris, puis sur le bouton \"Ajouter une ligne\"."]
["Veuillez vérifier qu'un coût salarial n'est pas déjà financé par un autre pouvoir public/une autre organisation pour éviter le double financement."]
["Année 1","Fonction/Organisation","Coût salarial brut sur une base annuelle","Charge de travail dédiée au projet (=% d'ETP)","Durée (en mois) de l'engagement dans le cadre du projet","Coût salarial total"]
[null,null,null,null,null,{"$f":"(((Tabel5[[#This Row],[Coût salarial brut sur une base annuelle]]/12)*Tabel5[[#This Row],[Durée (en mois) de l''engagement dans le cadre du projet]])*Tabel5[[#This Row],[Charge de travail dédiée au projet (=% d''ETP)]])","v":0}]
[null,null,null,null,null,{"$f":"(((Tabel5[[#This Row],[Coût salarial brut sur une base annuelle]]/12)*Tabel5[[#This Row],[Durée (en mois) de l''engagement dans le cadre du projet]])*Tabel5[[#This Row],[Charge de travail dédiée au projet (=% d''ETP)]])","v":0}]
[null,null,null,null,null,{"$f":"(((Tabel5[[#This Row],[Coût salarial brut sur une base annuelle]]/12)*Tabel5[[#This Row],[Durée (en mois) de l''engagement dans le cadre du projet]])*Tabel5[[#This Row],[Charge de travail dédiée au projet (=% d''ETP)]])","v":0}]
[null,null,null,null,null,{"$f":"(((Tabel5[[#This Row],[Coût salarial brut sur une base annuelle]]/12)*Tabel5[[#This Row],[Durée (en mois) de l''engagement dans le cadre du projet]])*Tabel5[[#This Row],[Charge de travail dédiée au projet (=% d''ETP)]])","v":0}]
[null,null,null,null,null,{"$f":"(((Tabel5[[#This Row],[Coût salarial brut sur une base annuelle]]/12)*Tabel5[[#This Row],[Durée (en mois) de l''engagement dans le cadre du projet]])*Tabel5[[#This Row],[Charge de travail dédiée au projet (=% d''ETP)]])","v":0}]
["Année 2","Fonction/Organisation","Coût salarial brut sur une base annuelle","Charge de travail dédiée au projet (=% d'ETP)","Durée (en mois) de l'engagement dans le cadre du projet","Coût salarial total"]
[null,null,null,null,null,{"$f":"(((Tabel57[[#This Row],[Coût salarial brut sur une base annuelle]]/12)*Tabel57[[#This Row],[Durée (en mois) de l''engagement dans le cadre du projet]])*Tabel57[[#This Row],[Charge de travail dédiée au projet (=% d''ETP)]])","v":0}]
[null,null,null,null,null,{"$f":"(((Tabel57[[#This Row],[Coût salarial brut sur une base annuelle]]/12)*Tabel57[[#This Row],[Durée (en mois) de l''engagement dans le cadre du projet]])*Tabel57[[#This Row],[Charge de travail dédiée au projet (=% d''ETP)]])","v":0}]
[null,null,null,null,null,{"$f":"(((Tabel57[[#This Row],[Coût salarial brut sur une base annuelle]]/12)*Tabel57[[#This Row],[Durée (en mois) de l''engagement dans le cadre du projet]])*Tabel57[[#This Row],[Charge de travail dédiée au projet (=% d''ETP)]])","v":0}]
[null,null,null,null,null,{"$f":"(((Tabel57[[#This Row],[Coût salarial brut sur une base annuelle]]/12)*Tabel57[[#This Row],[Durée (en mois) de l''engagement dans le cadre du projet]])*Tabel57[[#This Row],[Charge de travail dédiée au projet (=% d''ETP)]])","v":0}]
[null,null,null,null,null,{"$f":"(((Tabel57[[#This Row],[Coût salarial brut sur une base annuelle]]/12)*Tabel57[[#This Row],[Durée (en mois) de l''engagement dans le cadre du projet]])*Tabel57[[#This Row],[Charge de travail dédiée au projet (=% d''ETP)]])","v":0}]

{"sheet":"Coûts d'exploitation","index":3,"n_rows":21,"n_cols":7,"rows_kept":21,"cut":false,"hidden":false,"merged":[[2,0,4,1],[7,0,8,5]]}
["Coûts d'exploitation"]
[]
["Documents justificatifs à présenter lors du rapportage en cours de projet (non-exhaustif) :",null,"• Tickets d'achat/factures"]
[null,null,"• Tickets de transport/factures clairement liés au projet"]
[null,null,"• Déclaration et/ou autres pièces justificatives concernant une demande de remboursement de frais encourus par un co-exécutant"]
[]
["Si vous avez besoin de plus de lignes que celles prévues dans le(s) tableau(x), vous pouvez ajouter vous-même des lignes en cliquant dans le tableau concerné avec votre souris, puis sur le bouton \"Ajouter une ligne\"."]
["Organisation = nom du co-exécutant ou du contractant (si le contractant n'est pas encore connu, indiquez \"contractant à déterminer\") ; \nDescription = brève description du coût (mentionnez-y les quantités ainsi que le prix à l'unité) ; Objectif = indiquez clairement en quoi la dépense est liée au projet et quel objectif est visé."]
[]
["Année 1","Organisation","Description du coût","Objectif","Coût hors TVA","TVA","Total"]
[null,null,null,null,null,null,{"$f":"SUM(Tabel2[[#This Row],[Coût hors TVA]],Tabel2[[#This Row],[TVA]])","v":0}]
[null,null,null,null,null,null,{"$f":"SUM(Tabel2[[#This Row],[Coût hors TVA]],Tabel2[[#This Row],[TVA]])","v":0}]
[null,null,null,null,null,null,{"$f":"SUM(Tabel2[[#This Row],[Coût hors TVA]],Tabel2[[#This Row],[TVA]])","v":0}]
[null,null,null,null,null,null,{"$f":"SUM(Tabel2[[#This Row],[Coût hors TVA]],Tabel2[[#This Row],[TVA]])","v":0}]
[null,null,null,null,null,null,{"$f":"SUM(Tabel2[[#This Row],[Coût hors TVA]],Tabel2[[#This Row],[TVA]])","v":0}]
["Année 2","Organisation","Description du coût","Objectif","Coût hors TVA","TVA","Total"]
[null,null,null,null,null,null,{"$f":"SUM(Tabel24[[#This Row],[Coût hors TVA]],Tabel24[[#This Row],[TVA]])","v":0}]
[null,null,null,null,null,null,{"$f":"SUM(Tabel24[[#This Row],[Coût hors TVA]],Tabel24[[#This Row],[TVA]])","v":0}]
[null,null,null,null,null,null,{"$f":"SUM(Tabel24[[#This Row],[Coût hors TVA]],Tabel24[[#This Row],[TVA]])","v":0}]
[null,null,null,null,null,null,{"$f":"SUM(Tabel24[[#This Row],[Coût hors TVA]],Tabel24[[#This Row],[TVA]])","v":0}]
[null,null,null,null,null,null,{"$f":"SUM(Tabel24[[#This Row],[Coût hors TVA]],Tabel24[[#This Row],[TVA]])","v":0}]

{"sheet":"Matériel TIC","index":4,"n_rows":24,"n_cols":7,"rows_kept":24,"cut":false,"hidden":false,"merged":[[2,0,4,1],[10,0,11,5],[6,0,7,6]]}
["Matériel TIC"]
[]
["Documents justificatifs à présenter lors du rapportage en cours de projet (non-exhaustif) :",null,"• Tickets d'achat/factures"]
[null,null,"• Tickets de transport/factures clairement liés au projet"]
[null,null,"• Déclaration et/ou autres pièces justificatives concernant une demande de remboursement de frais encourus par un co-exécutant"]
[]
["L'achat de matériel informatique pour les projets est limité à 25 % de la subvention annuelle reçue, TVA comprise, afin que les projets se concentrent principalement sur l'accompagnement et l'amélioration des compétences de leurs bénéficiaires.\nVous trouverez la liste du matériel informatique dans l'onglet \"Aperçu du matériel TIC\"."]
[]
[]
["Si vous avez besoin de plus de lignes que celles prévues dans le(s) tableau(x), vous pouvez ajouter vous-même des lignes en cliquant dans le tableau concerné avec votre souris, puis sur le bouton \"Ajouter une ligne\"."]
["Organisation = nom du co-exécutant ou du contractant (si le contractant n'est pas encore connu, indiquez \"contractant à déterminer\") ; \nDescription = brève description du coût (mentionnez-y les quantités ainsi que le prix à l'unité) ; Objectif = indiquez clairement en quoi la dépense est liée au projet et quel objectif est visé."]
[]
["Année 1","Organisation","Description du coût","Objectif","Coût hors TVA","TVA","Total"]
[null,null,null,null,null,null,{"$f":"(Tabel22[[#This Row],[Coût hors TVA]]+Tabel22[[#This Row],[TVA]])","v":0}]
[null,null,null,null,null,null,{"$f":"(Tabel22[[#This Row],[Coût hors TVA]]+Tabel22[[#This Row],[TVA]])","v":0}]
[null,null,null,null,null,null,{"$f":"(Tabel22[[#This Row],[Coût hors TVA]]+Tabel22[[#This Row],[TVA]])","v":0}]
[null,null,null,null,null,null,{"$f":"(Tabel22[[#This Row],[Coût hors TVA]]+Tabel22[[#This Row],[TVA]])","v":0}]
[null,null,null,null,null,null,{"$f":"(Tabel22[[#This Row],[Coût hors TVA]]+Tabel22[[#This Row],[TVA]])","v":0}]
["Année 2","Organisation","Description du coût","Objectif","Coût hors TVA","TVA","Total"]
[null,null,null,null,null,null,{"$f":"(Tabel249[[#This Row],[Coût hors TVA]]+Tabel249[[#This Row],[TVA]])","v":0}]
[null,null,null,null,null,null,{"$f":"(Tabel249[[#This Row],[Coût hors TVA]]+Tabel249[[#This Row],[TVA]])","v":0}]
[null,null,null,null,null,null,{"$f":"(Tabel249[[#This Row],[Coût hors TVA]]+Tabel249[[#This Row],[TVA]])","v":0}]
[null,null,null,null,null,null,{"$f":"(Tabel249[[#This Row],[Coût hors TVA]]+Tabel249[[#This Row],[TVA]])","v":0}]
[null,null,null,null,null,null,{"$f":"(Tabel249[[#This Row],[Coût hors TVA]]+Tabel249[[#This Row],[TVA]])","v":0}]

{"sheet":"Cofinancement","index":5,"n_rows":18,"n_cols":14,"rows_kept":18,"cut":false,"hidden":false,"merged":[[0,0,0,8],[9,11,10,13],[9,7,10,9],[9,0,10,2],[2,0,3,13],[5,0,6,13]]}
["Cofinancement (fonds propres + autres contributions)"]
[]
["Gardez à l'esprit en remplissant les rubriques \"Contribution(s) du/des co-exécutant(s) ou d'autre(s) organisation(s)\" et \"Contributions publiques/subventions\" qu'aucun double financement avec la subvention demandée n'est autorisé dans le cadre de l'appel à projets \"e-inclusion for Belgium - CPAS 2023\"."]
[]
[]
["Tout projet doit démontrer un cofinancement d'au moins 20 % du montant total des dépenses éligibles du projet à partir de la deuxième année (ou à partir de la première année s'il s'agit d'une extension d'un projet déjà financé par \"e-inclusion for Belgium - CPAS 2022\"). Le CPAS (ou association de CPAS) qui soumet la demande doit justifier de manière appropriée la manière dont il garantira ce cofinancement (fonds propres, autres contributions,...). Cependant, aucun double financement de la même dépense n'est autorisé. \nLe financement par un autre fonds de l'UE n'est pas accepté."]
[]
[]
["Si vous avez besoin de plus de lignes que celles prévues dans le(s) tableau(x), vous pouvez ajouter vous-même des lignes en cliquant dans le tableau concerné avec votre souris, puis sur le bouton \"Ajouter une ligne\"."]
["Fonds propres du porteur de projet et/ou éventuelle contribution des bénéficiaires du projet",null,null,null,null,null,null,"Contribution(s) du/des co-exécutant(s) \net/ou d'autre(s) organisation(s)",null,null,null,"Contributions publiques/subventions \n(demandées ou obtenues)"]
[]
["Année 1","Origine","Montant",null,null,null,null,"Année 1","Origine","Montant",null,"Année 1","Origine","Montant"]
[]
[]
[]
[]
[]
["Année 2","Origine","Montant",null,null,null,null,"Année 2","Origine","Montant",null,"Année 2","Origine","Montant"]

{"sheet":"Aperçu des dépenses acceptées","index":6,"n_rows":25,"n_cols":9,"rows_kept":25,"cut":false,"hidden":false,"merged":[[0,0,0,5],[9,8,23,14],[2,0,5,14],[24,0,24,14],[7,0,8,6],[7,8,8,14],[9,0,23,6]]}
["Aperçu des dépenses acceptées"]
[]
["Les dépenses doivent :\n•\t Avoir été générées au cours de la période de subvention : de novembre 2023 à octobre 2025 ; \n•\t Avoir été effectuées par le bénéficiaire du subside ;\n•\t Être reprises dans la comptabilité et être identifiables et contrôlables.\nLes projets soutenus doivent être sans but lucratif."]
[]
[]
[]
[]
["La subvention octroyée au CPAS ou association de CPAS (et à ses co-exécutants) \npourra servir à financer les frais suivants (liste exemplative) :",null,null,null,null,null,null,null,"Les frais suivants ne sont pas admis comme dépenses éligibles :"]
[]
["•\t Charges salariales internes des membres du personnel qui travailleront directement sur le projet, proportionnellement au temps qu’ils y consacreront ;\n•\t Prestations de tiers externe au CPAS (consultance, expertise, formateur) ;\n•\t Frais de fonctionnement et d’activités directement engendrés par le projet (consentis après l’octroi du subside et avant la fin du projet) : frais administratifs, achat ou location de matériel, etc. Attention: un forfait pour frais généraux n’est pas accepté ;\n•\t Les loyers et charges locatives exposés spécifiquement pour la mise en œuvre du projet (location d'une salle de formation, etc.). Attention : les loyers et charges locatives des bâtiments dont le CPAS ou les administrations locales sont déjà propriétaires ne seront pas admis ;\n•\t Frais de déplacement dans le cadre du projet ;\n•\t Développement de supports de communication papier ou informatiques (flyers, affiches, site internet, cours en ligne, applications, vidéos, etc.) ;\n•\t Achat de matériel informatique (maximum 25% du budget annuel du projet).",null,null,null,null,null,null,null,"•\t Double financement ;\n•\t TVA récupérable ;\n•\t Loyers et charges de bâtiment appartenant à une autorité publique locale ;\n•\t Frais de restaurant et de traiteur, catering ;\n•\t Indemnisations, amendes, pénalités financières, dettes et charges liées aux dettes ;\n•\t Avantages extra-légaux (chèques-repas, etc.) ;\n•\t Coûts encourus avant le projet ou après la fin du projet ;\n•\t Frais d'amortissement ;\n•\t Frais de voyage et de séjour à l’étranger."]
[]
[]
[]
[]
[]
[]
[]
[]
[]
[]
[]
[]
[]
[]
["En cas de doute ou de contradiction au sujet des dépenses éligibles, la règlementation européenne en matière de subside prévaudra toujours sur le règlement."]

{"sheet":"Aperçu du matériel TIC","index":7,"n_rows":30,"n_cols":13,"rows_kept":30,"cut":false,"hidden":false,"merged":[[6,0,6,12],[2,0,5,12],[29,0,30,12],[8,0,9,4],[10,0,28,4],[10,6,28,11],[8,6,9,12],[10,12,18,12]]}
["Aperçu du matériel informatique (max. 25% du budget)"]
[]
["Les dépenses doivent:\n•\t Avoir été générées au cours de la période de subvention : de novembre 2023 à octobre 2025, \n•\t Avoir été effectuées par le bénéficiaire du subside,\n•\t Être reprises dans la comptabilité et être identifiables et contrôlables\nLes projets soutenus doivent être sans but lucratif."]
[]
[]
[]
["L'achat de matériel informatique pour les projets est limité à 25 % de la subvention annuelle reçue, TVA comprise."]
[]
["Ce qui est considéré comme du matériel informatique \n(max 25% du budget annuel) :",null,null,null,null,null,"Ce qui n'est pas considéré comme du matériel informatique\n(ne doit donc pas être comptabilisé dans les 25% de matériel informatique)"]
[]
["•\t Ordinateur portable ;\n•\t Ordinateur fixe ;\n•\t Tablette ;\n•\t Smartphone ;\n•\t Serveur ;\n•\t Souris ;\n•\t Casque ;\n•\t Baffle ;\n•\t Clavier ;\n•\t Imprimante ;\n•\t Écran d'ordinateur ;\n•\t Grand écran de présentation/connecté + pied ;\n•\t Webcam ;\n•\t Disque dur ;\n•\t Switch ou commutateur réseau ;\n•\t Projecteur ;\n•\t Scanner ;\n•\t Clé 4G ;\n•\t Carte SD - carte mémoire amovible ;\n•\t Routeur 4G-5G / borne wifi portable;\n•\t Antenne WiFi ;\n•\t Docking station ;\n•\t Clé USB;\n•\t Modem.\n",null,null,null,null,null,"•\t Frais d'installation ou connexion à internet, WiFi ;\n•\t Frais d'installation du matériel informatique/réseau, configuration réseau ;\n•\t Frais de maintenance informatique ;\n•\t Frais de maintenance pour la connexion fibre optique;\n•\t Frais de maintenance, hébergement et sécurité du site internet ;\n•\t Frais d'abonnement gsm ou recharge forfait téléphone ;\n•\t Frais d'abonnement internet ;\n•\t Frais de réinitialisation ou paramétrage PC ;\n•\t Réparation sur PC ;\n•\t Adaptation d'un PC au handicap ;\n•\t Assurance vol matériel informatique ;\n•\t Cartouche d'encre imprimante ;\n•\t Papier pour imprimante ;\n•\t Lecteur de carte d'identité ;\n•\t Carte d'accès à l'EPN ;\n•\t Protection pour tablettes, pc, smartphones ;\n•\t Sofware: achat, licence, abonnement logiciels + mises à jour.\n",null,null,null,null,null,"Services"]
[]
[]
[]
[]
[]
[]
[]
[]
[]
[]
[]
[]
[]
[]
[]
[]
[]
[]
["En cas de doute ou de contradiction au sujet des dépenses éligibles, \nla règlementation européenne en matière de subside prévaudra toujours sur le règlement."]